Cogmind - Beta 17.1 @@@ ROGUE MODE // 2026.09.04 @ 22:39:43 Player: UnderDoug Result: Destroyed by FY-241(R) with Subdweller Laser Performance ------------- Evolutions (0) 0 Regions Visited (2) 400 Robots Destroyed (22) 110 Value Destroyed (583) 583 Prototype IDs (1) 20 Alien Tech Used (0) 0 Bonus (4985) 4985 TOTAL SCORE: 6098 Bonus ------- Prayed to X0-1V1 5000 Friendly Fire -15 Cogmind --------- Core Integrity 0/250 Matter 263/300 Energy 250/250 System Corruption 0% Temperature Cool (6) Movement Treading (160) Location -10/Subcaves Parts ------- > --- POWER (1) -------- Ion Engine > --- PROPULSION (2) --- Light Treads Light Treads > --- UTILITY (2) ------ Large Storage Unit X0-1V1's Piety Tracker > --- WEAPON (2) ------- Light Assault Rifle Light Cannon > --- INVENTORY (15) --- Ion Engine Ion Engine Aluminum Leg Aluminum Leg Medium Storage Unit Large Matter Pod (150) Sensor Array Seismic Detector Light Assault Rifle Grenade Launcher Grenade Launcher Peak State ------------ > --- POWER ------------ Ion Engine > --- PROPULSION ------- Aluminum Leg Aluminum Leg > --- UTILITY ---------- Large Storage Unit X0-1V1's Piety Tracker > --- WEAPON ----------- Light Assault Rifle Light Cannon > --- INVENTORY -------- Ion Engine Ion Engine Light Treads Light Treads Medium Storage Unit Large Matter Pod Sensor Array Seismic Detector Light Assault Rifle Grenade Launcher Grenade Launcher [Rating: 20] Favorites ----------- Power Ion Engine Engine Ion Engine Power Core Light Nuclear Core Propulsion Aluminum Leg Treads Light Treads Leg Aluminum Leg Utility Seismic Detector Device Seismic Detector Storage Small Storage Unit Weapon Light Assault Rifle Ballistic Gun Light Assault Rifle Ballistic Cannon Light Cannon Launcher Grenade Launcher Build | -11 -10 -10 ------- Run | Yrd Mat Sub Slots Evolved . | . . . Power . | . . . Propulsion . | . . . Utility . | . . . Weapon . | . . . Parts Attached 24 | 7 13 4 Power 3 | 1 2 . Engine 2 | 1 1 . Core 1 | . 1 . Reactor . | . . . Propulsion 10 | 2 6 2 Treads 2 | . . 2 Leg 8 | 2 6 . Wheel . | . . . Hover . | . . . Flight . | . . . Utility 6 | 2 4 . Device 2 | 1 1 . Storage 4 | 1 3 . Processor . | . . . Hackware . | . . . Protection . | . . . Artifact . | . . . Weapon 5 | 2 1 2 Energy Gun . | . . . Energy Cannon . | . . . Ballistic Gun 2 | 2 . . Ballistic Cannon 1 | . 1 . Launcher 2 | . . 2 Special Weapon . | . . . Impact Weapon . | . . . Slashing Weapon . | . . . Piercing Weapon . | . . . Special Melee Weapon . | . . . Unidentified Prototypes 1 | . 1 . Parts Lost 1 | . 1 . Power 1 | . 1 . Propulsion . | . . . Utility . | . . . Weapon . | . . . Highest Loss Streak 1 | . 1 . To Critical Strikes . | . . . Average Backups 8 | 5 8 11 Power 1 | . 1 2 Propulsion 2 | 3 2 2 Utility 2 | . 2 4 Weapon 2 | . 2 3 Tool/Special . | . . . Unused Backups 8 | . 4 4 Power 3 | . 1 2 Propulsion 2 | . 2 . Utility 2 | . 1 1 Weapon 1 | . . 1 Tool/Special . | . . . Average Slot Usage (%) 99 | . 99 100 Engine 10 | . 9 14 Core 3 | . 4 . Treads 3 | . . 15 Leg 24 | . 27 12 Device 14 | . 14 14 Storage 14 | . 14 14 Ballistic Gun 15 | . 16 14 Ballistic Cannon 11 | . 11 11 Peak Build Rating 20 | 8 20 20 Average Rating 10 | 5 7 20 On Entrance 9 | . 8 20 Avg Prop Armor Cover (%) . | . . . Naked Turns . | . . . Heaviest Build 30 | 13 30 30 Greatest Support 40 | 20 20 40 Greatest Overweight (x) 4 | 1 4 1 Average Overweight (x) . | . . . Largest Inventory Capacity 15 | 8 15 15 Average Capacity 10 | 7 9 15 Most Carried 11 | 8 11 11 Average Carried 8 | 5 8 11 Final Capacity 15 | 8 15 15 Final Carried 11 | 8 11 11 Class Distribution -------------------- 95% | Mutant 4% | Scavenger-Mutant Dominant Class ---------------- Mutant | -10/Materials Mutant | -10/Subcaves Resources | -11 -10 -10 ----------- Run | Yrd Mat Sub Matter Collected 861 | 292 451 118 Remotely . | . . . Salvage Created 717 | 120 478 119 Parts 37 | 6 22 9 Haulers Intercepted . | . . . Recyclers Shooed 2 | 1 1 . Parts Field Recycled . | . . . Retrieved Matter . | . . . Parts Self-Destructed 3 | . . 3 Prevented . | . . . Parts Restored . | . . . Kills | -11 -10 -10 ------- Run | Yrd Mat Sub Combat Hostiles Destroyed 16 | . 12 4 Guns 2 | . 1 1 Cannons 11 | . 11 . AOE 3 | . . 3 Classes Destroyed 6 | 2 3 1 Tunneler 1 | 1 . . Recycler 2 | 1 1 . Watcher 3 | . 3 . Swarmer 3 | . 3 . Grunt 10 | . 9 1 Subdweller 3 | . . 3 Best Kill Streak 5 | 1 5 2 Combat Bots Only 4 | . 4 2 Max Kills in Single Turn 1 | 1 1 1 Gunslinging . | . . . Exploded 1 | . . 1 Melee . | . . . Uniques/NPCs Destroyed . | . . . Combat | -11 -10 -10 -------- Run | Yrd Mat Sub Hostile Shots Fired 64 | . 39 25 Missed 16 | . 9 7 Hits 48 | . 30 18 Projectile 48 | . 30 18 Damage Taken 802 | . 450 352 Core 265 | . 139 126 Absorbed by Shields . | . . . Core Remaining (%) 100 | 100 . . Volleys Fired 58 | 11 36 11 Largest 2 | 2 2 2 Hottest 50 | 40 50 50 Shots Fired 116 | 22 72 22 Gun 77 | 22 44 11 Cannon 34 | . 28 6 Launcher 5 | . . 5 Special . | . . . Kinetic 111 | 22 72 17 Thermal . | . . . Explosive 5 | . . 5 Electromagnetic . | . . . Robot Hit Streak 8 | 5 8 5 Robot Miss Streak 2 | 1 2 1 Penetration Max . | . . . Secondary Targets . | . . . Shots Hit Robots 75 | 15 50 10 Core Hits 40 | 4 26 10 Critical Kills . | . . . Critical Parts Destroyed . | . . . Critical Strikes 2 | . 2 . Blast 2 | . 2 . Melee Attacks . | . . . Impact . | . . . Slashing . | . . . Piercing . | . . . Sneak Attacks . | . . . Combat Hostiles . | . . . Follow-up Attacks . | . . . Damage Inflicted 1036 | 125 658 253 Guns 431 | 125 249 57 Cannons 427 | . 409 18 Explosions 178 | . . 178 Melee . | . . . Ramming . | . . . Kinetic 858 | 125 658 75 Thermal . | . . . Explosive 178 | . . 178 Electromagnetic . | . . . Impact . | . . . Slashing . | . . . Piercing . | . . . Highest Corruption . | . . . Average Corruption . | . . . Corruption Purged . | . . . Corruption Blocked . | . . . Overload Shots . | . . . Overflow Damage . | . . . Projectiles . | . . . Explosions . | . . . Melee . | . . . Knockbacks 6 | . 6 . Impact . | . . . Kinetic 5 | . 5 . Secondary 1 | . 1 . Self-Inflicted Damage . | . . . Shots . | . . . Rammed . | . . . Targets Rammed . | . . . Kicked . | . . . Crushed . | . . . Highest Temperature 68 | . 68 . Average Temperature 16 | . 16 . Received Heat Transfer 243 | . 186 57 Siege Activations . | . . . Martial Activations . | . . . Shielding Activations . | . . . Robots Disrupted . | . . . Combat Hostiles . | . . . Robots Corrupted . | . . . Combat Hostiles . | . . . Parts Fried . | . . . Impact Corruptions . | . . . Robots Melted . | . . . Combat Hostiles . | . . . Parts Melted . | . . . Heat Transferred . | . . . Parts Sabotaged . | . . . Parts Stolen . | . . . Parts Stripped . | . . . Power Chain Reactions . | . . . Alert | -11 -10 -10 ------- Run | Yrd Mat Sub Maximum Alert Level . | . . . Low Security (%) 100 | 100 100 . Level 1 . | . . . Level 2 . | . . . Level 3 . | . . . Level 4 . | . . . Level 5 . | . . . High Security . | . . . Max Security . | . . . Peak Influence 107 | 5 107 . Initial . | . . . Average 22 | . 24 . Influence Increases 397 | 10 367 20 Destroy 0b10 Robot/C 260 | . 240 20 Destroy 0b10 Robot/NC 30 | 10 20 . Destroy Leader 66 | . 66 . Successful Hack 26 | . 26 . Lose Combat Pursuer 15 | . 15 . Influence Decreases 397 | 10 367 20 Time Decay 387 | 10 357 20 Lost Part 10 | . 10 . Squads Dispatched 3 | . 3 . Investigation 1 | . 1 . Extermination . | . . . Reinforcement 2 | . 2 . Assault . | . . . Garrison . | . . . Intercept . | . . . Searches Triggered . | . . . Construction Impeded . | . . . Haulers Reinforced . | . . . Active Scanning Responses . | . . . Cargo Convoy Interrupts . | . . . Stealth | -11 -10 -10 --------- Run | Yrd Mat Sub Distress Signals 1 | . 1 . Communications Jammed . | . . . Distress Signals . | . . . Times Spotted 26 | . 19 7 Peak Tracking Total 5 | . 5 4 Tactical Retreats 1 | . 1 . Traps | -11 -10 -10 ------- Run | Yrd Mat Sub Traps Triggered 4 | . 4 . Indirectly . | . . . Trap Hack Attempts . | . . . Triggered . | . . . Disarmed . | . . . Reprogrammed . | . . . Reused . | . . . Traps Extracted . | . . . Installed . | . . . Triggered . | . . . Machines | -11 -10 -10 ---------- Run | Yrd Mat Sub Machines Disabled . | . . . Max in Single Turn . | . . . Machines Repaired . | . . . Machines Dismantled . | . . . Machines Sabotaged . | . . . Overloaded Fab Kills . | . . . Hacking | -11 -10 -10 --------- Run | Yrd Mat Sub Machines Accessed 7 | . 7 . Terminals 7 | . 7 . Fabricators . | . . . Repair Stations . | . . . Recycling Units . | . . . Scanalyzers . | . . . Garrison Access . | . . . Total Hacks 15 | . 15 . Successful 7 | . 7 . Failed 8 | . 8 . Catastrophic 4 | . 4 . Database Lockouts . | . . . Manual 16 | . 16 . Terminals 15 | . 15 . Fabricators . | . . . Repair Stations . | . . . Recycling Units . | . . . Scanalyzers . | . . . Garrison Access . | . . . Terminal Hacks 1 | . 1 . Robot Schematic 1 | . 1 . Fabricator Hacks . | . . . Repair Station Hacks . | . . . Recycling Unit Hacks . | . . . Scanalyzer . | . . . Garrison Access Hacks . | . . . Unauthorized Hacks 6 | . 6 . Terminals 6 | . 6 . Skim 6 | . 6 . Fabricators . | . . . Repair Stations . | . . . Recycling Units . | . . . Scanalyzers . | . . . Garrison Access . | . . . Data Cores Recovered . | . . . Used . | . . . Hacking Detections 7 | . 7 . Full Trace Events . | . . . Feedback Events . | . . . Feedback Blocked . | . . . Robot Schematics Acquired 1 | . 1 . Robots Built . | . . . Authchips . | . . . Time . | . . . Total Robot Build Rating . | . . . Part Schematics Acquired . | . . . Parts Built . | . . . Authchips . | . . . Time . | . . . Total Part Build Rating . | . . . Part Studies Acquired . | . . . Parts Repaired . | . . . Time . | . . . Parts Recycled . | . . . Recycled Matter . | . . . Retrieved Matter . | . . . Retrieved Components . | . . . Parts Scanalyzed . | . . . Part Schematics Acquired . | . . . Parts Damaged . | . . . Bothacking | -11 -10 -10 ------------ Run | Yrd Mat Sub Used RIF Installer . | . . . Robots Hacked . | . . . Non-combat . | . . . Combat . | . . . Robot Hacks Applied . | . . . Relay Couplers Released . | . . . Fabnet Peak Effective % . | . . . Robots Rewired . | . . . Allies Hacked . | . . . Hacks Repelled . | . . . Allies | -11 -10 -10 -------- Run | Yrd Mat Sub Total Allies . | . . . Largest Group . | . . . Highest-Rated Group . | . . . Highest-Rated Ally . | . . . Total Orders . | . . . Ally Attacks . | . . . Total Damage . | . . . Kills . | . . . Allies Corrupted . | . . . Allies Melted . | . . . X0-1V1 Amusement Gains 16 | . 16 . Average Entertainment 10 | . 16 10 Intel | -11 -10 -10 ------- Run | Yrd Mat Sub Active Infowar (turns) 1499 | 41 1458 . Seismic 1499 | 41 1458 . Robot Analysis Total . | . . . Derelict Logs Recovered . | . . . Drone Launches . | . . . Drone Recoveries . | . . . Exploration | -11 -10 -10 ------------- Run | Yrd Mat Sub Turns Passed 2002 | 145 1462 395 Spaces Moved 1047 | 84 761 202 Core 8 | 7 1 . Treads 116 | . . 116 Legs 923 | 77 760 86 Wheels . | . . . Hover . | . . . Flight . | . . . Fastest Speed 50 | 50 120 160 Average Speed 139 | 117 132 172 Slowest Speed 250 | 190 250 190 Overloaded Moves . | . . . Propulsion Burnouts . | . . . Robots Hopped . | . . . Potential Cave-ins . | . . . Cave-ins Triggered . | . . . Exploration Rate (%) 39 | 5 97 17 Regions Visited 2 Branch Regions 1 Pre-discovered Areas 1 | . 1 . Known Exits Taken 1 | . 1 . Unknown Exits Taken 1 | 1 . . Scrap Searched . | . . . Spaces Dug . | . . . Terrain Destroyed 28 | . . 28 Melee . | . . . Projectile . | . . . AOE 28 | . . 28 Terrain Rammed . | . . . Walls Destroyed . | . . . Machines Disabled . | . . . Actions | -11 -10 -10 --------- Run | Yrd Mat Sub Total 1491 | 109 1156 226 Wait 328 | . 321 7 Move 1045 | 83 760 202 Hop . | . . . Pick Up 17 | 8 9 . Fast Attach 11 | 7 4 . Attach 1 | . 1 . Detach . | . . . Swap 17 | . 11 6 Drop 14 | . 14 . Fire 58 | 11 36 11 Melee . | . . . Ram . | . . . Kick . | . . . Crush . | . . . Escape Stasis . | . . . Rewire . | . . . Trap . | . . . Miscellaneous . | . . . Route ------- -11/Scrapyard -10/Materials (discovered 6 exits: *Mat x3 / *Min x2 / *Sub) -10/Subcaves History --------- Turn | Location | Event 9 | -11/Scrapyard | Discovered new exit (range 15) 146 | -11/Scrapyard | Entered Materials 300 | -10/Materials | Build established: Mutant 331 | -10/Materials | Discovered new exit (range 3) 724 | -10/Materials | Discovered new exit (range 16) 868 | -10/Materials | Discovered new exit (range 10) 1009 | -10/Materials | Discovered new exit (range 16) 1091 | -10/Materials | Learned location of Mines (-8) 1140 | -10/Materials | Learned Storage emergency access door positions 1208 | -10/Materials | Learned location of 1 exit from Storage 1227 | -10/Materials | Identified exit to Subcaves 1235 | -10/Materials | Learned location of 2 exits from Mines 1240 | -10/Materials | Identified exit to Mines 1240 | -10/Materials | Identified exit to Materials 1253 | -10/Materials | Learned Materials emergency access door positions 1275 | -10/Materials | Learned 4 Recycling zone layouts 1561 | -10/Materials | Core integrity fell below 50% 1598 | -10/Materials | Prayed at D.C.S.S. Altar Unit 1608 | -10/Materials | Entered Subcaves 1609 | -10/Subcaves | Approached by a straggling Scientist 1690 | -10/Subcaves | A swath of the cavern ceiling suddenly collapsed 1774 | -10/Subcaves | Ambushed by Subdweller buried in earth 1998 | -10/Subcaves | Core integrity fell below 20% 2003 | -10/Subcaves | Destroyed by FY-241(R) with Subdweller Laser Last Messages --------------- Acquired 3 matter. Subatomizers dissect the Sub. Machine Gun. Acquired 32 matter. Acquired 29 matter. Acquired 21 matter. Subatomizers dissect the Sub. Monowheel. The unstable cave ceiling collapses. Subatomizers dissect the Sub. Machine Gun. 93-A67(c): "I think it's somewhere northwest of here" Subatomizers dissect the Sub. Monowheel. 93-A67(c): "I think it's somewhere north of here" 93-A67(c): "We're getting close, I can feel it." LZ-15Y(R) destroyed. Acquired 29 matter. Acquired 4 matter. 93-A67(c) suffers critical hit (Destroy). Subatomizers dissect the Sub. Monowheel. X0-1V1 giggles madly! Map ----- +----------------------------------------------------+ | ?????????????????????????????????????????????????? | | ?????????????????????????????????????????????????? | | ?????????????????????????????????????????????????? | | ?????????????????????????????????????????????????? | | ?????????????????????????????????????????????????? | | ?????????????????????????????????????????????????? | | ?????????????????????????????????????????????????? | | ?????????????????????????????????????????????????? | | ?????????????????????????????????????????????????? | | ?????????????????????????????????????????????????? | | ?????????????????????????????????????????????????? | | ????????????????????????##???????????????????????? | | ???????????????????????## ???????????????????????? | | ??????????????????????## ???????????????????????? | | ?????????????????????? ???????????????????????? | | ??????????????????#???? ???????????????????????? | | ?????????????????# ????? ##?????????????????????? | | ????????????????? ????## #??###????????????????? | | ???????????????## #???## ### ##??? #??????????? | | ???????????????# "## ## #??????????? | | ???????????##??# ? "" #??????????? | | ???????##### ??# ""???#" #????????????? | | ???????# ## #????#""" #????????????? | | ???????? ? #????#" " "" #????????????? | | ?????????# ## #????## ! #????????????? | | ??????????# #######@ #?????????? | | ??# ?????# ##"## R& " ## #?????????? | | ??# ### """ " ##???##?????????? | | ? ##???????? ##????? | | ??????# # #### #???????? #???? | | ??????## ## ####?## #????????# #???? | | ???????#### ??# ###"##?# ####????##### #???? | | ??????????# ??## ##"""#?# ##??????## #???? | | ?????????????## #??##?????### #???? | | ?????????????# ##???###??#"" ##??? | | ?????????????# ####### ##?#"" #??? | | ?????????????## ####### "###"" #???? | | ?????????????## #???#"" " ""###" ###?? | | ?????????????# ###?#" ""## " #?# ### | | ?????????????# #?## ### " ### # | | ?????????????# #### ## " = | | ???????? ???# ##" " %[ | | ??????? "" ## " " ! | | ??????? "" " "" = ## | | ??? # ## ## ! ##### | | ????" #" """" ## ######## # ##?? | | ???????##""" """?## ## ## # "### ##? | | ????????## """??## # ## #### #? | | ?????????#""""""???# # ##### # # ##? | | ?????????#"??" ????## ## # # #??# ### # #? | +----------------------------------------------------+ Best States ------------- Heat Dissipation 25 Energy Generation 14 Energy Capacity 250 Matter Stores 300 Matter Capacity 300 Sight Range 16 Terrain Scan Density 10 Evasion (%) 55 Recoil Reduction 2 Item Schematics ----------------- None Robot Schematics ------------------ G-34 Mercenary | -10/Materials | Hacked Fabricated ------------ Nothing Repaired ---------- Nothing Studied --------- None Alien Tech Used ----------------- None Achievements -------------- None Challenges ------------ None Game ------ Seed ExperimentalZhirovTorch Manual? 0 Play Time 00:20:25 Cumulative 18.7 hours Start 2026.09.04 @ 22:20:49 End 2026.09.04 @ 22:39:43 Sessions 1 Manual Loads 0 Difficulty Rogue Special Mode None Game No. 37 Rogue 37 Adventurer 0 Explorer 0 Win Type - Total 0 Types 0/0/0/0/0/0/0/0/0/0 Lore% 30 Gallery% 17 Achievement% 16 Wizard Run 0 Options --------- Layout 1 ASCII 0 Keyboard 0 Movement Mouse Keybinds 0 Fullscreen 2 Font 24/X11 Map View 50x35 Zoom Use 0% Tactical HUD 0 Map Filters NONE Filters NONE Steam 1 RUN: 6d068de5-b066-455c-bf55-45f61925290d